Cogmind - Beta 12 @@@ ROGUE MODE // 2023.11.30 @ 15:21:23 Player: zapruda Result: Destroyed by L-31 Rogue with Katana Performance ------------- Evolutions (1) 500 Regions Visited (2) 400 Robots Destroyed (28) 140 Value Destroyed (560) 560 Prototype IDs (4) 80 Alien Tech Used (0) 0 Bonus (0) 0 TOTAL SCORE: 1680 Bonus ------- None Cogmind --------- Core Integrity 0/400 Matter 270/300 Energy 100/100 System Corruption 2% Temperature Cool (0) Movement Core (100) Ox1 Location -9/Materials Parts ------- > --- POWER (1) -------- (None) > --- PROPULSION (3) --- (None) > --- UTILITY (3) ------ Terrain Scan Processor Hacking Suite > --- WEAPON (2) ------- Katana Katana > --- INVENTORY (5) ---- Large Battery (200) Shield Generator Peak State ------------ > --- POWER ------------ Heavy Ion Engine > --- PROPULSION ------- Wheel Hover Unit Hover Unit > --- UTILITY ---------- Terrain Scan Processor Hacking Suite > --- WEAPON ----------- Katana Katana > --- INVENTORY -------- Heavy Ion Engine Aluminum Leg Terrain Scanner Katana Katana [Rating: 18] Favorites ----------- Power Heavy Ion Engine Engine Heavy Ion Engine Propulsion Hover Unit Leg Aluminum Leg Wheel Wheel Hover Unit Hover Unit Utility Terrain Scan Processor Device Terrain Scanner Storage Small Storage Unit Processor Terrain Scan Processor Hackware Hacking Suite Weapon Katana Energy Gun Small Laser Energy Cannon Light EM Pulse Cannon Ballistic Gun Assault Rifle Slashing Weapon Katana Build | -11 -10 -9 ------- Run | Jun Mat Mat Slots Evolved 2 | . . 2 Power . | . . . Propulsion 1 | . . 1 Utility 1 | . . 1 Weapon . | . . . Parts Attached 24 | . 7 17 Power 4 | . 1 3 Engine 4 | . 1 3 Core . | . . . Reactor . | . . . Propulsion 6 | . 2 4 Treads . | . . . Leg 1 | . . 1 Wheel 1 | . 1 . Hover 4 | . 1 3 Flight . | . . . Utility 5 | . 3 2 Device 2 | . 1 1 Storage . | . . . Processor 2 | . 2 . Hackware 1 | . . 1 Protection . | . . . Artifact . | . . . Weapon 9 | . 1 8 Energy Gun 2 | . . 2 Energy Cannon 1 | . . 1 Ballistic Gun 2 | . 1 1 Ballistic Cannon . | . . . Launcher . | . . . Special Weapon . | . . . Impact Weapon . | . . . Slashing Weapon 4 | . . 4 Piercing Weapon . | . . . Special Melee Weapon . | . . . Unidentified Prototypes . | . . . Parts Lost 9 | . . 9 Power 3 | . . 3 Propulsion 5 | . . 5 Utility . | . . . Weapon 1 | . . 1 Highest Loss Streak 5 | . . 5 To Critical Strikes . | . . . Average Slot Usage (%) 83 | . 92 80 Engine 10 | . 14 9 Leg 3 | . 11 . Wheel 8 | . 5 9 Hover 14 | . 11 16 Device 3 | . 8 1 Processor 10 | . 9 11 Hackware 7 | . . 10 Energy Gun 5 | . 12 1 Energy Cannon 2 | . . 4 Ballistic Gun 7 | . 15 3 Slashing Weapon 8 | . . 11 Naked Turns . | . . . Heaviest Build 15 | 13 13 15 Greatest Support 20 | 20 20 12 Greatest Overweight (x) 3 | . 1 3 Average Overweight (x) . | . . . Largest Inventory Capacity 8 | . 8 5 Average Capacity 5 | . 5 5 Most Carried 8 | . 8 5 Average Carried 3 | . 4 3 Final Capacity 8 | 8 5 5 Final Carried 6 | 6 4 2 Class Distribution -------------------- 65% | Mutant 34% | Scavenger-Mutant Dominant Class ---------------- Scavenger-Mutant | -10/Materials Mutant | -9/Materials Resources | -11 -10 -9 ----------- Run | Jun Mat Mat Matter Collected 529 | 200 124 205 Remotely . | . . . Salvage Created 992 | . 142 850 Parts 69 | . 17 52 Haulers Intercepted 4 | . . 4 Recyclers Shooed 2 | . . 2 Parts Field Recycled . | . . . Retrieved Matter . | . . . Parts Self-Destructed . | . . . Prevented . | . . . Kills | -11 -10 -9 ------- Run | Jun Mat Mat Combat Hostiles Destroyed 14 | . 2 12 Melee 6 | . . 6 Guns 4 | . 2 2 Cannons 3 | . . 3 AOE 1 | . . 1 Classes Destroyed 9 | . 4 5 Worker 1 | . . 1 Builder 3 | . 1 2 Hauler 4 | . . 4 Recycler 1 | . . 1 Operator 3 | . 2 1 Watcher 2 | . 1 1 Swarmer 3 | . . 3 Grunt 8 | . 2 6 Sentry 3 | . . 3 Best Kill Streak 6 | . 2 6 Combat Bots Only 6 | . 1 6 Max Kills in Single Turn 2 | . 1 2 Gunslinging . | . . . Exploded 1 | . . 1 Melee 1 | . . 1 Uniques/NPCs Destroyed . | . . . Combat | -11 -10 -9 -------- Run | Jun Mat Mat Damage Taken 1084 | . 74 1010 Core 414 | . . 414 Absorbed by Shields . | . . . Regen/Repaired (Parts) 11 | . . 11 Core Remaining (%) 100 | 100 100 . Volleys Fired 56 | . 18 38 Largest 2 | . 2 2 Hottest 101 | . 60 101 Shots Fired 78 | . 34 44 Gun 70 | . 34 36 Cannon 8 | . . 8 Launcher . | . . . Special . | . . . Kinetic 48 | . 18 30 Thermal 16 | . 16 . Explosive . | . . . Electromagnetic 14 | . . 14 Robot Hit Streak 8 | . 5 8 Robot Miss Streak 2 | . 2 2 Penetration Max . | . . . Secondary Targets . | . . . Shots Hit Robots 79 | . 20 59 Core Hits 33 | . 10 23 Critical Kills . | . . . Critical Parts Destroyed . | . . . Critical Strikes 2 | . . 2 Sever 2 | . . 2 Melee Attacks 48 | . . 48 Impact . | . . . Slashing 48 | . . 48 Piercing . | . . . Sneak Attacks 8 | . . 8 Combat Hostiles . | . . . Follow-up Attacks 4 | . . 4 Damage Inflicted 2060 | . 247 1813 Guns 596 | . 247 349 Cannons 165 | . . 165 Explosions 71 | . . 71 Melee 1228 | . . 1228 Ramming . | . . . Kinetic 475 | . 168 307 Thermal 150 | . 79 71 Explosive . | . . . Electromagnetic 207 | . . 207 Impact . | . . . Slashing 1228 | . . 1228 Piercing . | . . . Highest Corruption 2 | . . 2 Average Corruption 1 | . . 1 Corruption Purged . | . . . Corruption Blocked . | . . . Effects 3 | . . 3 Message Errors 1 | . . 1 Energy Discharges 1 | . . 1 Data Loss (minor) 1 | . . 1 Overload Shots . | . . . Overflow Damage 118 | . . 118 Projectiles . | . . . Explosions . | . . . Melee 118 | . . 118 Knockbacks . | . . . Impact . | . . . Kinetic . | . . . Secondary . | . . . Self-Inflicted Damage 41 | . . 41 Shots 1 | . . 1 Rammed . | . . . Targets Rammed . | . . . Kicked . | . . . Crushed . | . . . Highest Temperature 215 | . 27 215 Average Temperature 54 | . 12 95 Received Heat Transfer 312 | . 42 270 Siege Activations . | . . . Robots Corrupted . | . . . Combat Hostiles . | . . . Parts Fried 2 | . . 2 Impact Corruptions . | . . . Robots Melted . | . . . Combat Hostiles . | . . . Parts Melted . | . . . Heat Transferred 275 | . 175 100 Parts Sabotaged . | . . . Parts Stolen . | . . . Parts Stripped . | . . . Power Chain Reactions 1 | . . 1 Missiles Intercepted . | . . . Alert | -11 -10 -9 ------- Run | Jun Mat Mat Peak Influence 247 | . 102 247 Initial 42 | . . 42 Average 119 | . 53 148 Maximum Alert Level 1 | . . 1 Low Security (%) 79 | . 100 69 Level 1 20 | . . 30 Level 2 . | . . . Level 3 . | . . . Level 4 . | . . . Level 5 . | . . . High Security . | . . . Max Security . | . . . Squads Dispatched 5 | . 2 3 Investigation 3 | . 1 2 Extermination . | . . . Reinforcement 2 | . 1 1 Assault . | . . . Garrison . | . . . Intercept . | . . . Searches Triggered . | . . . Construction Impeded . | . . . Haulers Reinforced . | . . . Active Scanning Responses . | . . . Cargo Convoy Interrupts . | . . . Stealth | -11 -10 -9 --------- Run | Jun Mat Mat Distress Signals 1 | . . 1 Communications Jammed . | . . . Distress Signals . | . . . Times Spotted 31 | . 8 23 Peak Tracking Total 7 | . 2 7 Tactical Retreats 1 | . . 1 Traps | -11 -10 -9 ------- Run | Jun Mat Mat Traps Triggered . | . . . Indirectly . | . . . Trap Hack Attempts . | . . . Triggered . | . . . Disarmed . | . . . Reprogrammed . | . . . Reused . | . . . Traps Extracted . | . . . Installed . | . . . Triggered . | . . . Machines | -11 -10 -9 ---------- Run | Jun Mat Mat Machines Disabled . | . . . Max in Single Turn . | . . . Machines Repaired . | . . . Machines Sabotaged . | . . . Overloaded Fab Kills . | . . . Hacking | -11 -10 -9 --------- Run | Jun Mat Mat Machines Accessed 9 | . 3 6 Terminals 5 | . 2 3 Fabricators . | . . . Repair Stations 1 | . . 1 Recycling Units 2 | . 1 1 Scanalyzers 1 | . . 1 Garrison Access . | . . . Total Hacks 31 | . 7 24 Successful 18 | . 3 15 Failed 13 | . 4 9 Catastrophic 4 | . 1 3 Database Lockouts . | . . . Manual 7 | . 2 5 Terminals 17 | . 6 11 Fabricators . | . . . Repair Stations 4 | . . 4 Recycling Units 4 | . 1 3 Scanalyzers 6 | . . 6 Garrison Access . | . . . Terminal Hacks 6 | . 2 4 Prototype ID Bank 3 | . 1 2 Emergency Access Points 1 | . 1 . Hauler Manifests 1 | . . 1 Registered Components 1 | . . 1 Fabricator Hacks . | . . . Repair Station Hacks 4 | . . 4 Scan Component 2 | . . 2 Repair 2 | . . 2 Recycling Unit Hacks 2 | . 1 1 Retrieve Components 2 | . 1 1 Scanalyzer 6 | . . 6 Insert Component 3 | . . 3 Analyze 3 | . . 3 Garrison Access Hacks . | . . . Unauthorized Hacks . | . . . Terminals . | . . . Fabricators . | . . . Repair Stations . | . . . Recycling Units . | . . . Scanalyzers . | . . . Garrison Access . | . . . Data Cores Recovered 1 | . 1 . Used . | . . . Hacking Detections 6 | . 2 4 Full Trace Events 3 | . 1 2 Feedback Events 2 | . . 2 Corruption 2 | . . 2 Feedback Blocked . | . . . Robot Schematics Acquired . | . . . Robots Built . | . . . Authchips . | . . . Time . | . . . Total Robot Build Rating . | . . . Part Schematics Acquired 3 | . . 3 Parts Built . | . . . Authchips . | . . . Time . | . . . Total Part Build Rating . | . . . Parts Repaired 2 | . . 2 Time 52 | . . 52 Parts Recycled . | . . . Recycled Matter . | . . . Retrieved Matter . | . . . Retrieved Components 5 | . 3 2 Parts Scanalyzed 3 | . . 3 Part Schematics Acquired 3 | . . 3 Parts Damaged . | . . . Bothacking | -11 -10 -9 ------------ Run | Jun Mat Mat Used RIF Installer . | . . . Robots Hacked . | . . . Non-combat . | . . . Combat . | . . . Robot Hacks Applied . | . . . Relay Couplers Released . | . . . Fabnet Peak Effective % . | . . . Robots Rewired . | . . . Allies Hacked . | . . . Hacks Repelled . | . . . Allies | -11 -10 -9 -------- Run | Jun Mat Mat Total Allies . | . . . Largest Group . | . . . Highest-Rated Group . | . . . Highest-Rated Ally . | . . . Total Orders . | . . . Ally Attacks . | . . . Total Damage . | . . . Kills . | . . . Allies Corrupted . | . . . Allies Melted . | . . . Intel | -11 -10 -9 ------- Run | Jun Mat Mat Robot Analysis Total . | . . . Derelict Logs Recovered . | . . . Drone Launches . | . . . Drone Recoveries . | . . . Exploration | -11 -10 -9 ------------- Run | Jun Mat Mat Turns Passed 901 | . 272 629 Spaces Moved 745 | 1 218 526 Core 31 | . . 31 Treads . | . . . Legs 32 | 1 30 1 Wheels 159 | . 86 73 Hover 523 | . 102 421 Flight . | . . . Fastest Speed 56 | 120 70 56 Average Speed 78 | 120 90 73 Slowest Speed 200 | 120 130 200 Overloaded Moves . | . . . Propulsion Burnouts . | . . . Robots Hopped . | . . . Cave-ins Triggered . | . . . Exploration Rate (%) 27 | 2 34 46 Regions Visited 2 Branch Regions . Pre-discovered Areas . | . . . Known Exits Taken . | . . . Unknown Exits Taken 2 | 1 1 . Scrap Searched . | . . . Spaces Dug 1 | . . 1 Terrain Destroyed 6 | . . 6 Melee 1 | . . 1 Projectile . | . . . AOE 5 | . . 5 Terrain Rammed . | . . . Walls Destroyed . | . . . Machines Disabled . | . . . Actions | -11 -10 -9 --------- Run | Jun Mat Mat Total 922 | . 260 662 Wait 18 | . 4 14 Move 743 | . 217 526 Hop . | . . . Pick Up 20 | . 6 14 Fast Attach 4 | . 2 2 Attach 15 | . 2 13 Detach 2 | . . 2 Swap 5 | . 3 2 Drop 16 | . 8 8 Fire 56 | . 18 38 Melee 43 | . . 43 Ram . | . . . Kick . | . . . Crush . | . . . Escape Stasis . | . . . Rewire . | . . . Trap . | . . . Miscellaneous . | . . . Route ------- -11/Junkyard -10/Materials -9/Materials (discovered 1 exit: [*Min]) History --------- Turn | Location | Event 1 | -11/Junkyard | Discovered new exit (range 0) 1 | -11/Junkyard | Entered Materials 185 | -10/Materials | Discovered new exit (range 7) 273 | -10/Materials | Entered another Materials area 273 | -9/Materials | Evolved 2 slots: Propulsion x1, Utility x1 339 | -9/Materials | Repaired Hover Unit 365 | -9/Materials | Repaired Lgt. Ion Engine? 425 | -9/Materials | Lost 3 parts (1p1n1w) 597 | -9/Materials | Discovered new exit (range 9) 664 | -9/Materials | Build established: Mutant 878 | -9/Materials | Core integrity fell below 50% 896 | -9/Materials | Core integrity fell below 20% 902 | -9/Materials | Destroyed by L-31 Rogue with Katana Last Messages --------------- 00782_ System corrupted: Energy discharge (-78). 00808_ Wheel destroyed. 00815_ Destroyed Aluminum Leg. 00821_ G-47 Trooper destroyed. 00829_ G-34 Mercenary destroyed. 00840_ Hover Unit destroyed. 00848_ Y-45 Defender Lgt. Armor Plating severed. 00848_ Katana follow-up attack on Y-45 Defender. 00848_ Y-45 Defender destroyed. 00860_ G-34 Mercenary destroyed. 00860_ Katana follow-up attack on G-34 Mercenary. 00863_ Hvy. Ion Engine destroyed. 00866_ Acquired Aluminum Leg. 00871_ Y-45 Defender destroyed. 00873_ G-34 Mercenary destroyed. 00882_ Katana severed. 00884_ Aluminum Leg destroyed. 00890_ Katana severed. 00900_ Hvy. Ion Engine destroyed. 00900_ K-01 Serf collects debris. Map ----- +----------------------------------------------------+ | ## """ #?????????????????????????????????? | | ####+## """ #?????????????????????????????????? | | ] # #?????????????????????????????????? | | + #?????????????????????????????????? | | """ # """ #?????????????????????????????????? | | """ # """ #?????????????????????????????????? | | """ !# """ #???????????????????####??????????? | | # #??????????????????? ??????????? | | ####### #??????????????????? ??????????? | | ??????# """ #??????????????????? ??????????? | | ??????# """ +??????????????????? #??????????? | | ??????# """ #???????????????#### #??????????? | | ?????## #????????????????! #??????????? | | ?????#" #???????????????? #??????????? | | ?????#" """ #????????????????? #??????????? | | ?????#" """ #????????????????? #??????????? | | ?????#T """ #?????????????????? #??????????? | | ?????#" #?????????????????? #??????????? | | ?????#" #??????????????????# #??????????? | | ?????#" #?????????????????## ##?????????? | | ####### "T" #????????#####????# #?????????? | | ! """ !#??#+##+##! ######! #?????????? | | [! #??# %!! !%%[ #?????????? | | *!%! #??# ## %*### ##* #?????????? | | ####/############## ###l#### ## #?????????? | | # / = #=@%gk /w########?????????? | | "# """ #??## #%""" # #????????????????? | | T# """ #??#T #["T" # #????????????????? | | "# """ #???# + # #????????????????? | | # ! #???# # # #????????????????? | | # """ ##### "T" # # #????????????????? | | # """ + ! """ ######## ###??????????????? | | # """ ########### #????# #??????????????? | | # #??######## #????# #??????????????? | | #########+##### #????# #??????????????? | | # + #????# #??????????????? | | # ####### #????# #??????????????? | | # "T" #?????## ########+#######??????????? | | #########??????# ## #??????????? | | ???????????????# ## #??????????? | | ??????????????? ## """" [[ #??????????? | | ?????????????? ########## """" [ #??????????? | | ?????????????##?????????# """" #??????????? | | ????????????????????????? #??????????? | | ???????????????????????????############??????????? | | | | | | | | | | | +----------------------------------------------------+ Best States ------------- Heat Dissipation 28 Energy Generation 14 Energy Capacity 280 Matter Stores 300 Matter Capacity 300 Sight Range 16 Terrain Scan Range 14 Terrain Scan Density 85 Evasion (%) 55 Offensive Hacking 10 Item Schematics ----------------- Hacking Suite | -9/Materials | Scanalyzed Hvy. EM Pulse Gun | -9/Materials | Scanalyzed Katana | -9/Materials | Scanalyzed Robot Schematics ------------------ None Fabricated ------------ Nothing Alien Tech Used ----------------- None Achievements -------------- None Challenges ------------ None Game ------ Seed MicroRemoteSink Manual? 0 Play Time 00:12:16 Cumulative 92.4 hours Start 2023.11.30 @ 15:09:52 End 2023.11.30 @ 15:21:23 Sessions 1 Manual Loads 0 Difficulty Rogue Special Mode None Game No. 140 Rogue 140 Adventurer 0 Explorer 0 Win Type - Total 0 Types 0/0/0/0/0/0/0/0/0 Lore% 30 Gallery% 54 Achievement% 36 Wizard Run 0 Options --------- ASCII 0 Keyboard 0 Movement Mouse Keybinds 0 Fullscreen 2 Font 18/SmallcapsGlow Map View 76x50 Tactical HUD 1 Map Filters NONE Filters NONE Steam 1 RUN: ef061466-6b4a-49cd-8f99-e1d98df888c3